fUST/lending_fUST_20250810
["ID","MTS","AMOUNT","RATE_DAILY","PERIOD"]
[378169504,1754760648617,-153.0,0.00022881,2]
[378169505,1754760648627,-153.0,0.00022881,2]
[378169506,1754760648636,-153.0,0.00022881,2]
[378169507,1754760648646,-153.0,0.00022881,2]
[378169508,1754760648655,-153.0,0.00022881,2]
[378169509,1754760648664,-153.0,0.00022881,2]
[378169510,1754760648674,-150.874442,0.00022898,14]
[378169511,1754760648684,-153.0,0.00022899,2]
[378169512,1754760648694,-153.0,0.00022899,2]
[378169513,1754760648703,-153.0,0.00022899,2]
[378169514,1754760648713,-153.0,0.00022899,2]
[378169515,1754760648723,-153.0,0.00022899,2]
[378169516,1754760648733,-460.0,0.00022913,2]
[378169517,1754760648743,-460.0,0.00022913,2]
[378169518,1754760648753,-912.75,0.00022913,2]
[378169519,1754760648763,-460.0,0.00022913,2]
[378169520,1754760648772,-460.0,0.00022914,2]
[378169521,1754760648782,-2038.49,0.00022914,2]
[378169522,1754760648793,-460.0,0.00022914,2]
[378169523,1754760648803,-853.66,0.00022914,2]
[378169524,1754760648813,-460.0,0.00022914,2]
[378169525,1754760648823,-460.0,0.00022914,2]
[378169526,1754760648833,-1605.05,0.00022914,2]
[378169527,1754760648843,-1748.2,0.00022914,2]
[378169528,1754760648852,-460.0,0.00022914,2]
[378169529,1754760648862,-460.0,0.00022914,2]
[378169530,1754760648871,-734.63,0.00022914,2]
[378169531,1754760648880,-460.0,0.00022914,2]
[378169532,1754760648890,-460.0,0.00022914,2]
[378169533,1754760648899,-460.0,0.00022914,2]
[378169534,1754760648909,-536.11,0.00022914,2]
[378169535,1754760648918,-547.32,0.00022914,2]
[378169536,1754760648927,-460.0,0.00022914,2]
[378169537,1754760648937,-460.0,0.00022914,2]
[378169538,1754760648947,-1497.02,0.00022914,2]
[378169539,1754760648956,-460.0,0.00022915,2]
[378169540,1754760648965,-460.0,0.00022915,2]
[378169541,1754760648974,-460.0,0.00022915,2]
[378169542,1754760648983,-460.0,0.00022915,2]
[378169543,1754760648993,-621.04,0.00022915,2]
[378169544,1754760649002,-460.0,0.00022915,2]
[378169545,1754760649014,-460.0,0.00022915,2]
[378169546,1754760649023,-460.0,0.00022915,2]
[378169547,1754760649032,-460.0,0.00022915,2]
[378169548,1754760649042,-460.0,0.00022915,2]
[378169549,1754760649051,-460.0,0.00022915,2]
[378169550,1754760649061,-460.0,0.00022915,2]
[378169551,1754760649070,-490.67,0.00022915,2]
[378169552,1754760649112,-948.6,0.00022915,2]
[378169553,1754760649122,-1347.8825954,0.00022915,2]
[378169554,1754760649251,-249.7174046,0.00022915,2]
[378169555,1754760649260,-460.0,0.00022915,2]
[378169556,1754760649269,-3785.91,0.00022915,2]
[378169557,1754760649278,-460.0,0.00022915,2]
[378169558,1754760649288,-460.0,0.00022915,2]
[378169559,1754760649297,-460.0,0.00022915,2]
[378169560,1754760649306,-460.0,0.00022915,2]
[378169561,1754760649316,-985.24,0.00022915,2]
[378169562,1754760649325,-612.98,0.00022915,2]
[378169563,1754760649334,-460.0,0.00022915,2]
[378169564,1754760649343,-678.47,0.00022915,2]
[378169565,1754760649352,-460.0,0.00022915,2]
[378169566,1754760649362,-1095.78,0.00022915,2]
[378169567,1754760649371,-460.0,0.00022915,2]
[378169568,1754760649381,-460.0,0.00022915,2]
[378169569,1754760649390,-1079.1,0.00022915,2]
[378169570,1754760649399,-460.0,0.00022915,2]
[378169571,1754760649408,-460.0,0.00022915,2]
[378169572,1754760649417,-460.0,0.00022915,2]
[378169573,1754760649427,-579.29,0.00022915,2]
[378169574,1754760649436,-886.05,0.00022915,2]
[378169575,1754760649445,-460.0,0.00022916,2]
[378169576,1754760649454,-466.25,0.00022916,2]
[378169577,1754760649464,-460.0,0.00022916,2]
[378169578,1754760649473,-460.0,0.00022916,2]
[378169579,1754760649482,-596.8,0.00022916,2]
[378169580,1754760649491,-460.0,0.00022916,2]
[378169581,1754760649501,-460.0,0.00022916,2]
[378169582,1754760649510,-562.22,0.00022916,2]
[378169583,1754760649519,-489.24,0.00022916,2]
[378169584,1754760649528,-1110.78,0.00022916,2]
[378169585,1754760649539,-1309.57,0.00022916,2]
[378169586,1754760649548,-1352.75,0.00022916,2]
[378169587,1754760649557,-460.0,0.00022916,2]
[378169588,1754760649567,-460.0,0.00022916,2]
[378169589,1754760649577,-460.0,0.00022916,2]
[378169590,1754760649586,-151.0,0.00022917,7]
[378169591,1754760649595,-151.0,0.00022917,7]
[378169592,1754760649604,-151.0,0.00022917,7]
[378169593,1754760649613,-460.0,0.00022917,2]
[378169594,1754760649622,-460.0,0.00022917,2]
[378169595,1754760649632,-693.5,0.00022917,2]
[378169596,1754760649641,-460.0,0.00022917,2]
[378169597,1754760649651,-151.0,0.00022917,7]
[378169598,1754760649660,-151.0,0.00022917,7]
[378169599,1754760649669,-186.796422,0.00022917,7]
[378169600,1754760649678,-186.796422,0.00022917,7]
[378169601,1754760649687,-153.0,0.00022917,2]
[378169602,1754760649697,-153.0,0.00022917,2]
[378169603,1754760649706,-153.0,0.00022917,2]
[378169604,1754760649716,-153.0,0.00022917,2]
[378169605,1754760649725,-151.0,0.00022918,7]
[378169606,1754760649734,-337.655499,0.00022918,7]
[378169607,1754760649744,-337.655499,0.00022918,7]
[378169608,1754760649754,-151.0,0.00022923,2]
[378169609,1754760649764,-151.0,0.00022923,2]
[378169610,1754760649774,-151.0,0.00022923,2]
[378169611,1754760649785,-151.0,0.00022923,2]
[378169612,1754760649795,-151.0,0.00022923,2]
[378169613,1754760649804,-151.0,0.00022923,2]
[378169614,1754760649814,-151.0,0.00022923,2]
[378169615,1754760649824,-151.0,0.00022923,2]
[378169616,1754760649834,-151.0,0.00022923,2]
[378169617,1754760649843,-151.0,0.00022923,2]
[378169618,1754760649853,-151.0,0.00022923,2]
[378169619,1754760649862,-151.0,0.00022923,2]
[378169620,1754760649872,-207.35618051,0.00022923,2]
[378169621,1754760649881,-151.0,0.00022923,2]
[378169622,1754760649891,-151.0,0.00022923,2]
[378169623,1754760649901,-500.0,0.00022923,2]
[378169624,1754760649911,-151.0,0.00022923,2]
[378169625,1754760649921,-198.0,0.00022923,2]
[378169626,1754760649931,-228.53626171,0.00022923,2]
[378169627,1754760649940,-274.13465651,0.00022923,2]
[378169628,1754760649950,-151.0,0.00022923,2]
[378169629,1754760649960,-255.05657753,0.00022923,2]
[378169630,1754760649970,-151.0,0.00022923,2]
[378169631,1754760649979,-500.0,0.00022923,2]
[378169632,1754760649989,-500.0,0.00022923,2]
[378169633,1754760649999,-151.0,0.00022923,2]
[378169634,1754760650012,-153.02299337,0.00022923,2]
[378169635,1754760650022,-500.0,0.00022923,2]
[378169636,1754760650031,-151.0,0.00022923,2]
[378169637,1754760650041,-500.0,0.00022923,2]
[378169638,1754760650050,-151.0,0.00022923,2]
[378169639,1754760650060,-500.0,0.00022923,2]
[378169640,1754760650069,-151.0,0.00022923,2]
[378169641,1754760650079,-500.0,0.00022923,2]
[378169642,1754760650089,-500.0,0.00022923,2]
[378169643,1754760650098,-500.0,0.00022943,2]
[378169644,1754760650109,-346.75490497,0.00022965,2]
[378169645,1754760650119,-340.9759116,0.00022965,2]
[378169646,1754760650129,-1500.0,0.00022968,2]
[378169647,1754760650139,-1000.0,0.00022968,2]
[378169648,1754760650149,-1500.0,0.00022968,2]
[378169649,1754760650159,-160.0,0.00023,2]
[378169650,1754760650169,-168.0,0.00023014,7]
[378169651,1754760650179,-260.0,0.00023067,2]
[378169652,1754760650189,-500.0,0.00023081,2]
[378169653,1754760650203,-415.9,0.00023169,3]
[378169654,1754760650213,-831.82,0.00023177,3]
[378169655,1754760650222,-2258.02,0.00023179,3]
[378169656,1754760650231,-1129.02,0.00023179,3]
[378169657,1754760650241,-564.5,0.00023179,3]
[378169658,1754760650251,-460.0,0.00023187,2]
[378169659,1754760650261,-912.75,0.00023187,2]
[378169660,1754760650270,-470.96,0.00023187,2]
[378169661,1754760650279,-460.0,0.00023188,2]
[378169662,1754760650289,-2038.49,0.00023188,2]
[378169663,1754760650299,-460.0,0.00023188,2]
[378169664,1754760650308,-853.66,0.00023188,2]
[378169665,1754760650318,-460.0,0.00023188,2]
[378169666,1754760650327,-254.16228084,0.00023188,2]
[378169667,1754760650337,-1605.05,0.00023188,2]
[378169668,1754760650346,-1748.2,0.00023188,2]
[378169669,1754760650356,-460.0,0.00023188,2]
[378169670,1754760650367,-460.0,0.00023188,2]
[378169671,1754760650376,-734.63,0.00023188,2]
[378169672,1754760650387,-460.0,0.00023188,2]
[378169673,1754760650404,-460.0,0.00023188,2]
[378169674,1754760650414,-460.0,0.00023188,2]
[378169675,1754760650424,-536.11,0.00023188,2]
[378169676,1754760650433,-547.32,0.00023188,2]
[378169677,1754760650442,-460.0,0.00023188,2]
[378169678,1754760650451,-460.0,0.00023188,2]
[378169679,1754760650461,-1497.02,0.00023188,2]
[378169680,1754760650470,-460.0,0.00023189,2]
[378169681,1754760650480,-460.0,0.00023189,2]
[378169682,1754760650489,-460.0,0.00023189,2]
[378169683,1754760650499,-621.04,0.00023189,2]
[378169684,1754760650508,-362.12,0.00023189,2]
[378169685,1754760650517,-460.0,0.00023189,2]
[378169686,1754760650527,-460.0,0.00023189,2]
[378169687,1754760650538,-460.0,0.00023189,2]
[378169688,1754760650548,-460.0,0.00023189,2]
[378169689,1754760650557,-239.1243147,0.00023189,2]
[378169690,1754760650568,-460.0,0.00023189,2]
[378169691,1754760650578,-490.67,0.00023189,2]
[378169692,1754760650587,-948.6,0.00023189,2]
[378169693,1754760650597,-1597.6,0.00023189,2]
[378169694,1754760650607,-460.0,0.00023189,2]
[378169695,1754760650617,-3785.91,0.00023189,2]
[378169696,1754760650627,-460.0,0.00023189,2]
[378169697,1754760650637,-460.0,0.00023189,2]
[378169698,1754760650647,-460.0,0.00023189,2]
[378169699,1754760650657,-460.0,0.00023189,2]
[378169700,1754760650666,-985.24,0.00023189,2]
[378169701,1754760650676,-612.98,0.00023189,2]
[378169702,1754760650686,-460.0,0.00023189,2]
[378169703,1754760650695,-678.47,0.00023189,2]
[378169704,1754760650704,-605.49200384,0.00023189,2]
[378169705,1754760650714,-1095.78,0.00023189,2]
[378169706,1754760650724,-460.0,0.00023189,2]
[378169707,1754760650734,-460.0,0.00023189,2]
[378169708,1754760650744,-1079.1,0.00023189,2]
[378169709,1754760650754,-460.0,0.00023189,2]
[378169710,1754760650763,-460.0,0.00023189,2]
[378169711,1754760650773,-460.0,0.00023189,2]
[378169712,1754760650783,-579.29,0.00023189,2]
[378169713,1754760650793,-886.05,0.00023189,2]
[378169714,1754760650802,-460.0,0.0002319,2]
[378169715,1754760650812,-466.25,0.0002319,2]
[378169716,1754760650822,-460.0,0.0002319,2]
[378169717,1754760650831,-460.0,0.0002319,2]
[378169718,1754760650841,-596.8,0.0002319,2]
[378169719,1754760650851,-460.0,0.0002319,2]
[378169720,1754760650861,-460.0,0.0002319,2]
[378169721,1754760650874,-562.22,0.0002319,2]
[378169722,1754760650888,-489.24,0.0002319,2]
[378169723,1754760650908,-1110.78,0.0002319,2]
[378169724,1754760650922,-1309.57,0.0002319,2]
[378169725,1754760650932,-1352.75,0.0002319,2]
[378169726,1754760650942,-151.0,0.0002319,7]
[378169727,1754760650951,-178.249702,0.0002319,7]
[378169728,1754760650961,-460.0,0.0002319,2]
[378169729,1754760650971,-151.0,0.0002319,7]
[378169730,1754760650980,-460.0,0.0002319,2]
[378169731,1754760650990,-460.0,0.0002319,2]
[378169732,1754760650999,-540.129389,0.0002319,7]
[378169733,1754760651011,-540.129389,0.0002319,7]
[378169734,1754760651022,-259.970801,0.00023191,7]
[378169735,1754760651032,-259.970801,0.00023191,7]
[378169736,1754760651042,-460.0,0.00023191,2]
[378169737,1754760651051,-693.5,0.00023191,2]
[378169738,1754760651062,-460.0,0.00023191,2]
[378169739,1754760651071,-151.0,0.00023197,2]
[378169740,1754760651081,-151.0,0.00023197,2]
[378169741,1754760651090,-151.0,0.00023197,2]
[378169742,1754760651100,-220.84070799,0.00023197,2]
[378169743,1754760651109,-151.0,0.00023197,2]
[378169744,1754760651119,-151.0,0.00023197,2]
[378169745,1754760651128,-151.0,0.00023197,2]
[378169746,1754760651137,-151.0,0.00023197,2]
[378169747,1754760651147,-152.54934877,0.00023197,2]
[378169748,1754760651157,-151.0,0.00023197,2]
[378169749,1754760651166,-151.0,0.00023197,2]
[378169750,1754760651176,-151.0,0.00023197,2]
[378169751,1754760651185,-151.76740727,0.00023197,2]
[378169752,1754760651195,-500.0,0.00023197,2]
[378169753,1754760651204,-151.0,0.00023197,2]
[378169754,1754760651214,-170.50131139,0.00023197,2]
[378169755,1754760651224,-500.0,0.00023197,2]
[378169756,1754760651233,-455.31615429,0.00023197,2]
[378169757,1754760651244,-500.0,0.00023197,2]
[378169758,1754760651253,-500.0,0.00023197,2]
[378169759,1754760651262,-151.0,0.00023197,2]
[378169760,1754760651272,-500.0,0.00023197,2]
[378169761,1754760651282,-151.0,0.00023197,2]
[378169762,1754760651291,-500.0,0.00023197,2]
[378169763,1754760651301,-1000.0,0.00023233,2]
[378169764,1754760651311,-507.99762055,0.00023233,2]
[378169765,1754760651320,-1003.38529828,0.00023263,2]
[378169766,1754760651330,-569.97181184,0.00023263,2]
[378169767,1754760651344,-997.63546535,0.00023263,2]
[378169768,1754760651356,-1000.0,0.00023263,2]
[378169769,1754760651365,-1000.0,0.00023263,2]
[378169770,1754760651374,-1000.0,0.00023263,2]
[378169771,1754760651384,-1000.0,0.00023263,2]
[378169772,1754760651393,-1000.0,0.00023263,2]
[378169773,1754760651402,-1000.0,0.00023263,2]
[378169774,1754760651412,-1000.0,0.00023263,2]
[378169775,1754760651421,-500.0,0.00023263,2]
[378169776,1754760651430,-600.0,0.00023266,2]
[378169777,1754760651440,-250.0,0.00023274,2]
[378169778,1754760651449,-500.0,0.00023288,2]
[378169779,1754760651459,-1000.0,0.0002329,2]
[378169780,1754760651469,-50000.0,0.000233,5]
[378169781,1754760651479,-213.465376,0.000233,7]
[378169782,1754760651488,-213.465376,0.000233,7]
[378169783,1754760651498,-151.0,0.000233,7]
[378169784,1754760651508,-14284.3601967,0.00023311,2]
[378169785,1754760651517,-151.0,0.00023409,7]
[378169786,1754760651527,-9170.03123197,0.00023409,2]
[378169787,1754760651536,-420.0,0.0002342,2]
[378169788,1754760651546,-480.0,0.00023421,2]
[378169789,1754760651555,-1387.01961987,0.00023428,2]
[378169790,1754760651564,-500.0,0.00023456,2]
[378169791,1754760651574,-500.0,0.00023456,2]
[378169792,1754760651584,-460.0,0.00023461,2]
[378169793,1754760651594,-912.75,0.00023461,2]
[378169794,1754760651604,-460.0,0.00023462,2]
[378169795,1754760651614,-2038.49,0.00023462,2]
[378169796,1754760651624,-853.66,0.00023462,2]
[378169797,1754760651633,-460.0,0.00023462,2]
[378169798,1754760651642,-1605.05,0.00023462,2]
[378169799,1754760651652,-1748.2,0.00023462,2]
[378169800,1754760651661,-460.0,0.00023462,2]
[378169801,1754760651671,-460.0,0.00023462,2]
[378169802,1754760651680,-734.63,0.00023462,2]
[378169803,1754760651689,-460.0,0.00023462,2]
[378169804,1754760651699,-460.0,0.00023462,2]
[378169805,1754760651709,-460.0,0.00023462,2]
[378169806,1754760651718,-536.11,0.00023462,2]
[378169807,1754760651728,-547.32,0.00023462,2]
[378169808,1754760651737,-460.0,0.00023462,2]
[378169809,1754760651747,-1497.02,0.00023462,2]
[378169810,1754760651756,-460.0,0.00023463,2]
[378169811,1754760651766,-460.0,0.00023463,2]
[378169812,1754760651776,-460.0,0.00023463,2]
[378169813,1754760651785,-621.04,0.00023463,2]
[378169814,1754760651795,-460.0,0.00023463,2]
[378169815,1754760651805,-460.0,0.00023463,2]
[378169816,1754760651814,-460.0,0.00023463,2]
[378169817,1754760651824,-460.0,0.00023463,2]
[378169818,1754760651833,-490.67,0.00023463,2]
[378169819,1754760651843,-948.6,0.00023463,2]
[378169820,1754760651853,-1597.6,0.00023463,2]
[378169821,1754760651865,-460.0,0.00023463,2]
[378169822,1754760651874,-3785.91,0.00023463,2]
[378169823,1754760651885,-460.0,0.00023463,2]
[378169824,1754760651894,-460.0,0.00023463,2]
[378169825,1754760651904,-460.0,0.00023463,2]
[378169826,1754760651914,-460.0,0.00023463,2]
[378169827,1754760651924,-985.24,0.00023463,2]
[378169828,1754760652049,-612.98,0.00023463,2]
[378169829,1754760652060,-460.0,0.00023463,2]
[378169830,1754760652069,-678.47,0.00023463,2]
[378169831,1754760652081,-1095.78,0.00023463,2]
[378169832,1754760652090,-460.0,0.00023463,2]
[378169833,1754760652100,-1079.1,0.00023463,2]
[378169834,1754760652110,-460.0,0.00023463,2]
[378169835,1754760652119,-399.67858357,0.00023463,2]
[378169836,1754760652129,-460.0,0.00023463,2]
[378169837,1754760652139,-579.29,0.00023463,2]
[378169838,1754760652149,-886.05,0.00023463,2]
[378169839,1754760652159,-460.0,0.00023464,2]
[378169840,1754760652168,-466.25,0.00023464,2]
[378169841,1754760652178,-460.0,0.00023464,2]
[378169842,1754760652187,-460.0,0.00023464,2]
[378169843,1754760652197,-596.8,0.00023464,2]
[378169844,1754760652208,-460.0,0.00023464,2]
[378169845,1754760652218,-151.224947,0.00023464,7]
[378169846,1754760652227,-562.22,0.00023464,2]
[378169847,1754760652237,-489.24,0.00023464,2]
[378169848,1754760652247,-1110.78,0.00023464,2]
[378169849,1754760652258,-1309.57,0.00023464,2]
[378169850,1754760652268,-1352.75,0.00023464,2]
[378169851,1754760652277,-460.0,0.00023464,2]
[378169852,1754760652287,-460.0,0.00023465,2]
[378169853,1754760652297,-693.5,0.00023465,2]
[378169854,1754760652306,-460.0,0.00023465,2]
[378169855,1754760652315,-151.0,0.00023471,2]
[378169856,1754760652325,-259.08575645,0.00023471,2]
[378169857,1754760652333,-151.0,0.00023471,2]
[378169858,1754760652349,-151.0,0.00023471,2]
[378169859,1754760652358,-550.31862162,0.00023471,2]
[378169860,1754760652367,-151.0,0.00023471,2]
[378169861,1754760652377,-500.0,0.00023471,2]
[378169862,1754760652387,-358.40643601,0.00023471,2]
[378169863,1754760652397,-500.0,0.00023471,2]
[378169864,1754760652406,-151.0,0.00023471,2]
[378169865,1754760652415,-500.0,0.00023471,2]
[378169866,1754760652425,-151.0,0.00023471,2]
[378169867,1754760652434,-500.0,0.00023471,2]
[378169868,1754760652443,-540.129389,0.00023471,7]
[378169869,1754760652452,-540.129389,0.00023471,7]
[378169870,1754760652462,-500.0,0.00023487,2]
[378169871,1754760652471,-157.0,0.00023489,2]
[378169872,1754760652480,-150.23222237,0.00023489,2]
[378169873,1754760652489,-504.58546499,0.00023491,2]
[378169874,1754760652499,-151.0,0.000235,8]
[378169875,1754760652509,-151.0,0.0002351,7]
[378169876,1754760652517,-151.0,0.0002351,7]
[378169877,1754760652527,-1000.0,0.00023516,2]
[378169878,1754760652536,-1000.0,0.00023516,2]
[378169879,1754760652546,-412.0,0.0002353,2]
[378169880,1754760652556,-150.52451577,0.00023533,2]
[378169881,1754760652565,-150.0,0.00023533,2]
[378169882,1754760652576,-150.874442,0.0002355,5]
[378169883,1754760652585,-150.0,0.00023571,2]
[378169884,1754760652594,-1363.90364639,0.00023582,2]
[378169885,1754760652604,-1788.92,0.00023584,2]
[378169886,1754760652613,-2183.31810187,0.00023606,2]
[378169887,1754760652622,-151.0,0.00023606,2]
[378169888,1754760652632,-250.0,0.00023606,2]
[378169889,1754760652641,-250.0,0.00023606,2]
[378169890,1754760652651,-250.0,0.00023606,2]
[378169891,1754760652660,-250.0,0.00023606,2]
[378169892,1754760652670,-250.0,0.00023606,2]
[378169893,1754760652679,-250.0,0.00023606,2]
[378169894,1754760652689,-151.0,0.00023606,2]
[378169895,1754760652698,-250.0,0.00023606,2]
[378169896,1754760652707,-151.0,0.00023606,2]
[378169897,1754760652716,-250.0,0.00023606,2]
[378169898,1754760652726,-151.0,0.00023606,2]
[378169899,1754760652735,-328.11868627,0.00023606,2]
[378169900,1754760652745,-151.0,0.00023606,2]
[378169901,1754760652754,-151.0,0.00023606,2]
[378169902,1754760652764,-151.0,0.00023606,2]
[378169903,1754760652774,-151.0,0.00023606,2]
[378169904,1754760652783,-151.0,0.00023606,2]
[378169905,1754760652793,-151.0,0.00023606,2]
[378169906,1754760652802,-151.0,0.00023606,2]
[378169907,1754760652811,-151.0,0.00023606,2]
[378169908,1754760652821,-500.0,0.00023606,2]
[378169909,1754760652830,-500.0,0.00023606,2]
[378169910,1754760652839,-500.0,0.00023606,2]
[378169911,1754760652848,-500.0,0.00023606,2]
[378169912,1754760652858,-400.0,0.00023606,2]
[378169913,1754760652867,-151.0,0.00023606,2]
[378169914,1754760652877,-284.47548457,0.00023606,2]
[378169915,1754760652886,-360.0,0.00023615,2]
[378169916,1754760652896,-2264.10087164,0.00023661,2]
[378169917,1754760652905,-150.874442,0.00023675,5]
[378169918,1754760652915,-2347.87260389,0.00023716,2]
[378169919,1754760652924,-912.75,0.00023735,2]
[378169920,1754760652933,-460.0,0.00023736,2]
[378169921,1754760652943,-2038.49,0.00023736,2]
[378169922,1754760652952,-853.66,0.00023736,2]
[378169923,1754760652961,-460.0,0.00023736,2]
[378169924,1754760652970,-1605.05,0.00023736,2]
[378169925,1754760652980,-1748.2,0.00023736,2]
[378169926,1754760652989,-460.0,0.00023736,2]
[378169927,1754760652999,-460.0,0.00023736,2]
[378169928,1754760653012,-734.63,0.00023736,2]
[378169929,1754760653021,-460.0,0.00023736,2]
[378169930,1754760653030,-460.0,0.00023736,2]
[378169931,1754760653040,-460.0,0.00023736,2]
[378169932,1754760653050,-536.11,0.00023736,2]
[378169933,1754760653059,-547.32,0.00023736,2]
[378169934,1754760653068,-460.0,0.00023736,2]
[378169935,1754760653078,-1497.02,0.00023736,2]
[378169936,1754760653088,-460.0,0.00023737,2]
[378169937,1754760653097,-460.0,0.00023737,2]
[378169938,1754760653106,-484.48,0.00023737,2]
[378169939,1754760653115,-621.04,0.00023737,2]
[378169940,1754760653124,-460.0,0.00023737,2]
[378169941,1754760653133,-460.0,0.00023737,2]
[378169942,1754760653142,-460.0,0.00023737,2]
[378169943,1754760653151,-460.0,0.00023737,2]
[378169944,1754760653160,-490.67,0.00023737,2]
[378169945,1754760653169,-948.6,0.00023737,2]
[378169946,1754760653178,-1597.6,0.00023737,2]
[378169947,1754760653188,-500.05,0.00023737,2]
[378169948,1754760653197,-3785.91,0.00023737,2]
[378169949,1754760653206,-460.0,0.00023737,2]
[378169950,1754760653215,-460.0,0.00023737,2]
[378169951,1754760653224,-460.0,0.00023737,2]
[378169952,1754760653233,-460.0,0.00023737,2]
[378169953,1754760653243,-985.24,0.00023737,2]
[378169954,1754760653253,-612.98,0.00023737,2]
[378169955,1754760653262,-460.0,0.00023737,2]
[378169956,1754760653271,-678.47,0.00023737,2]
[378169957,1754760653280,-1095.78,0.00023737,2]
[378169958,1754760653291,-1079.1,0.00023737,2]
[378169959,1754760653300,-460.0,0.00023737,2]
[378169960,1754760653309,-579.29,0.00023737,2]
[378169961,1754760653318,-886.05,0.00023737,2]
[378169962,1754760653328,-460.0,0.00023738,2]
[378169963,1754760653337,-466.25,0.00023738,2]
[378169964,1754760653346,-460.0,0.00023738,2]
[378169965,1754760653356,-460.0,0.00023738,2]
[378169966,1754760653366,-596.8,0.00023738,2]
[378169967,1754760653375,-460.0,0.00023738,2]
[378169968,1754760653384,-562.22,0.00023738,2]
[378169969,1754760653393,-489.24,0.00023738,2]
[378169970,1754760653402,-1110.78,0.00023738,2]
[378169971,1754760653411,-1309.57,0.00023738,2]
[378169972,1754760653421,-1352.75,0.00023738,2]
[378169973,1754760653431,-460.0,0.00023738,2]
[378169974,1754760653441,-460.0,0.00023739,2]
[378169975,1754760653450,-693.5,0.00023739,2]
[378169976,1754760653460,-151.0,0.0002374,7]
[378169977,1754760653469,-151.0,0.0002374,7]
[378169978,1754760653479,-151.0,0.0002374,7]
[378169979,1754760653488,-151.0,0.0002374,7]
[378169980,1754760653497,-186.796422,0.0002374,7]
[378169981,1754760653507,-186.796422,0.0002374,7]
[378169982,1754760653516,-198.0,0.00023745,2]
[378169983,1754760653526,-181.36279855,0.00023745,2]
[378169984,1754760653535,-151.0,0.00023745,2]
[378169985,1754760653545,-345.35678441,0.00023745,2]
[378169986,1754760653555,-500.0,0.00023745,2]
[378169987,1754760653563,-198.0,0.00023745,2]
[378169988,1754760653573,-289.31681853,0.00023745,2]
[378169989,1754760653582,-1114.73838764,0.00023771,2]
[378169990,1754760653592,-1000.0,0.00023781,2]
[378169991,1754760653602,-150.874442,0.000238,5]
[378169992,1754760653611,-1500.0,0.00023811,2]
[378169993,1754760653620,-504.3092506,0.00023811,2]
[378169994,1754760653629,-1405.59629683,0.00023811,2]
[378169995,1754760653639,-1500.0,0.00023811,2]
[378169996,1754760653648,-1500.0,0.00023811,2]
[378169997,1754760653657,-1527.82257883,0.00023811,2]
[378169998,1754760653667,-1500.0,0.00023811,2]
[378169999,1754760653676,-350.0,0.00023822,2]
[378170000,1754760653686,-150.0,0.00023824,2]
[378170001,1754760653695,-1500.0,0.00023838,2]
[378170002,1754760653704,-150.874442,0.00023846,14]
[378170003,1754760653714,-5888.0,0.00023852,2]